Cogmind - Beta 15 @@@ ROGUE MODE // 2025.05.20 @ 15:10:56 Player: Miles Result: Destroyed by H-61 Shepherd with Heavy Assault Cannon Performance ------------- Evolutions (2) 1000 Regions Visited (3) 600 Robots Destroyed (53) 265 Value Destroyed (1185) 1185 Prototype IDs (2) 40 Alien Tech Used (0) 0 Bonus (0) 0 TOTAL SCORE: 3090 Bonus ------- None Cogmind --------- Core Integrity 0/550 Matter 241/300 Energy 100/100 System Corruption 0% Temperature Cool (0) Movement Core (400) Ox7 Location -8/Materials Parts ------- > --- POWER (1) -------- (None) > --- PROPULSION (4) --- (None) > --- UTILITY (4) ------ Medium Storage Unit Medium Storage Unit > --- WEAPON (2) ------- Particle Gun > --- INVENTORY (10) --- Heat Sink Datajack Maul Peak State ------------ > --- POWER ------------ Improved Ion Engine > --- PROPULSION ------- Improved Carbon-fiber Leg Improved Carbon-fiber Leg Improved Carbon-fiber Leg Improved Carbon-fiber Leg > --- UTILITY ---------- Medium Storage Unit Terrain Scanner Improved Light Armor Plating System Shield > --- WEAPON ----------- High-powered Shotgun High-powered Shotgun > --- INVENTORY -------- Improved Ion Engine Improved Carbon-fiber Leg Improved Carbon-fiber Leg Improved Carbon-fiber Leg Medium Storage Unit High-powered Shotgun High-powered Shotgun Flak Cannon Datajack Maul [Rating: 34] Favorites ----------- Power Improved Ion Engine Engine Improved Ion Engine Power Core Light Nuclear Core Propulsion Wheel Leg Improved Carbon-fiber Leg Wheel Wheel Utility Medium Storage Unit Device ECM Suite Storage Medium Storage Unit Hackware System Shield Protection Improved Light Armor Plating Weapon High-powered Shotgun Energy Gun Medium Laser Ballistic Gun High-powered Shotgun Ballistic Cannon Flak Cannon Special Weapon Welding Torch Impact Weapon Flail Special Melee Weapon Datajack Build | -11 -10 -9 -8 ------- Run | Yrd Mat Mat Mat Slots Evolved 4 | . . 2 2 Power . | . . . . Propulsion 2 | . . 1 1 Utility 2 | . . 1 1 Weapon . | . . . . Parts Attached 55 | 8 14 7 26 Power 9 | 1 1 2 5 Engine 8 | 1 1 2 4 Core 1 | . . . 1 Reactor . | . . . . Propulsion 19 | 2 5 2 10 Treads . | . . . . Leg 8 | . . . 8 Wheel 11 | 2 5 2 2 Hover . | . . . . Flight . | . . . . Utility 12 | 3 3 1 5 Device 5 | 2 1 1 1 Storage 4 | 1 2 . 1 Processor . | . . . . Hackware 1 | . . . 1 Protection 2 | . . . 2 Artifact . | . . . . Weapon 15 | 2 5 2 6 Energy Gun 4 | 1 1 . 2 Energy Cannon . | . . . . Ballistic Gun 5 | 1 . 1 3 Ballistic Cannon 1 | . . . 1 Launcher . | . . . . Special Weapon 1 | . 1 . . Impact Weapon 2 | . 1 1 . Slashing Weapon . | . . . . Piercing Weapon . | . . . . Special Melee Weapon 2 | . 2 . . Unidentified Prototypes 2 | . 1 . 1 Parts Lost 37 | . 7 1 29 Power 6 | . 1 . 5 Propulsion 15 | . 2 1 12 Utility 7 | . 1 . 6 Weapon 9 | . 3 . 6 Highest Loss Streak 17 | . 4 1 17 To Critical Strikes . | . . . . Average Backups 7 | 4 9 7 8 Power 1 | . 1 1 1 Propulsion 2 | 2 3 1 1 Utility 2 | 1 3 1 1 Weapon 1 | . . . 3 Tool/Special . | . . . . Unused Backups 5 | . 4 1 . Power 1 | . . 1 . Propulsion . | . . . . Utility 3 | . 3 . . Weapon 1 | . 1 . . Tool/Special . | . . . . Average Slot Usage (%) 88 | . 91 87 86 Engine 10 | . 13 11 7 Leg 3 | . . . 8 Wheel 26 | . 26 32 22 Device 12 | . 12 21 9 Storage 11 | . 14 11 9 Hackware 3 | . . . 7 Protection 1 | . . . 4 Energy Gun 4 | . 9 . 3 Ballistic Gun 7 | . 10 2 7 Ballistic Cannon 1 | . . . 2 Impact Weapon 1 | . . 8 . Special Melee Weapon 1 | . 2 . 2 Peak Build Rating 34 | 9 9 13 34 Average Rating 13 | 6 7 10 20 On Entrance 6 | . 7 7 13 Naked Turns . | . . . . Heaviest Build 33 | 15 20 23 33 Greatest Support 72 | 20 20 32 72 Greatest Overweight (x) 7 | 1 1 1 7 Average Overweight (x) . | . . . . Largest Inventory Capacity 10 | 8 10 10 10 Average Capacity 9 | 7 9 10 10 Most Carried 10 | 8 10 10 10 Average Carried 7 | 4 9 7 8 Final Capacity 10 | 8 10 10 10 Final Carried 10 | 8 8 10 3 Class Distribution -------------------- 100% | Mutant Dominant Class ---------------- Mutant | -10/Materials Mutant | -9/Materials Mutant | -8/Materials Resources | -11 -10 -9 -8 ----------- Run | Yrd Mat Mat Mat Matter Collected 1313 | 352 236 125 600 Remotely . | . . . . Salvage Created 1619 | 266 298 145 910 Parts 102 | 19 20 6 57 Haulers Intercepted . | . . . . Recyclers Shooed . | . . . . Parts Field Recycled . | . . . . Retrieved Matter . | . . . . Parts Self-Destructed . | . . . . Prevented . | . . . . Kills | -11 -10 -9 -8 ------- Run | Yrd Mat Mat Mat Combat Hostiles Destroyed 34 | . 11 3 20 Melee 1 | . . 1 . Guns 23 | . 10 . 13 Cannons 7 | . 1 . 6 AOE 1 | . . . 1 Classes Destroyed 10 | 3 3 2 2 Worker 4 | 1 . . 3 Builder 3 | . 1 . 2 Tunneler 9 | 8 . . 1 Recycler 3 | 1 . . 2 Swarmer 13 | . 6 . 7 Grunt 13 | . 5 . 8 Duelist 2 | . . 1 1 Sentry 4 | . . 2 2 Specialist 1 | . . . 1 Hunter 1 | . . . 1 Best Kill Streak 6 | 6 3 1 6 Combat Bots Only 3 | . 3 1 3 Max Kills in Single Turn 2 | 1 1 1 2 Gunslinging . | . . . . Exploded 1 | . . . 1 Melee 1 | . . 1 . Uniques/NPCs Destroyed . | . . . . Combat | -11 -10 -9 -8 -------- Run | Yrd Mat Mat Mat Hostile Shots Fired 451 | . 85 27 339 Missed 150 | . 33 5 112 Hits 301 | . 52 22 227 Melee 6 | . . 3 3 Projectile 295 | . 52 19 224 AOE 1 | . . . 1 Critical Strikes 14 | . . 1 13 Damage Taken 4883 | . 694 354 3835 Core 961 | . 220 158 583 Absorbed by Shields . | . . . . Regen/Repaired (Parts) 201 | . 74 14 113 Core Remaining (%) 57 | 100 12 60 . Volleys Fired 134 | 24 42 . 68 Largest 2 | 2 2 . 2 Hottest 70 | 70 70 . 70 Shots Fired 226 | 48 63 . 115 Gun 201 | 48 61 . 92 Cannon 23 | . . . 23 Launcher . | . . . . Special 2 | . 2 . . Kinetic 151 | 24 39 . 88 Thermal 53 | 24 24 . 5 Explosive . | . . . . Electromagnetic 22 | . . . 22 Robot Hit Streak 9 | 6 9 . 9 Robot Miss Streak 10 | 2 3 . 10 Penetration Max . | . . . . Secondary Targets 5 | . 2 . 3 Max Gunslinging Chain 1 | . 1 . 1 Shots Hit Robots 161 | 27 35 11 88 Core Hits 98 | 11 18 2 67 Critical Kills . | . . . . Critical Parts Destroyed 4 | . . 3 1 Critical Strikes 4 | . . 3 1 Destroy 1 | . . . 1 Smash 3 | . . 3 . Melee Attacks 22 | . . 21 1 Impact 21 | . . 21 . Slashing . | . . . . Piercing . | . . . . Sneak Attacks 1 | . . . 1 Combat Hostiles . | . . . . Follow-up Attacks . | . . . . Damage Inflicted 2933 | 389 453 296 1795 Guns 2251 | 389 428 . 1434 Cannons 274 | . . . 274 Explosions 85 | . . . 85 Melee 296 | . . 296 . Ramming 23 | . 21 . 2 Kinetic 1752 | 176 276 . 1300 Thermal 517 | 213 156 . 148 Explosive . | . . . . Electromagnetic 345 | . . . 345 Impact 296 | . . 296 . Slashing . | . . . . Piercing . | . . . . Highest Corruption 1 | . 1 . . Average Corruption 1 | . 1 . . Corruption Purged . | . . . . Corruption Blocked . | . . . . Effects 6 | . 6 . . Message Errors 3 | . 3 . . Matter Fused 1 | . 1 . . Data Loss (minor) 1 | . 1 . . Misfires 1 | . 1 . . Overload Shots . | . . . . Overflow Damage 55 | . . 55 . Projectiles . | . . . . Explosions . | . . . . Melee 55 | . . 55 . Knockbacks 10 | . 1 . 9 Impact 1 | . 1 . . Kinetic 9 | . . . 9 Secondary . | . . . . Self-Inflicted Damage 63 | . 10 . 53 Shots 1 | . . . 1 Rammed 3 | . 2 . 1 Targets Rammed 3 | . 2 . 1 Kicked . | . . . . Crushed . | . . . . Highest Temperature 141 | 56 87 . 141 Average Temperature 22 | 19 24 . 23 Received Heat Transfer 1308 | . 114 87 1107 Siege Activations . | . . . . Martial Activations . | . . . . Shielding Activations . | . . . . Robots Disrupted . | . . . . Combat Hostiles . | . . . . Robots Corrupted 2 | . . 2 . Combat Hostiles 2 | . . 2 . Parts Fried 2 | . . 2 . Impact Corruptions 3 | . . 3 . Robots Melted . | . . . . Combat Hostiles . | . . . . Parts Melted 3 | 2 1 . . Heat Transferred 1346 | 629 469 . 248 Parts Sabotaged . | . . . . Parts Stolen . | . . . . Parts Stripped . | . . . . Power Chain Reactions 1 | . . . 1 Alert | -11 -10 -9 -8 ------- Run | Yrd Mat Mat Mat Maximum Alert Level . | . . . . Low Security (%) 100 | 100 100 100 100 Level 1 . | . . . . Level 2 . | . . . . Level 3 . | . . . . Level 4 . | . . . . Level 5 . | . . . . High Security . | . . . . Max Security . | . . . . Peak Influence 114 | 10 114 50 102 Initial 18 | . . 18 1 Average 31 | 2 39 16 40 Influence Increases 1079 | 50 286 127 616 Destroy 0b10 Robot/C 680 | . 220 60 400 Destroy 0b10 Robot/NC 95 | 50 5 . 40 Destroy Leader 170 | . 50 30 90 Successful Hack 22 | . 9 7 6 Disable Machine 30 | . . . 30 Destroy Structure 7 | . 2 . 5 Partial Spotted 60 | . . 30 30 Lose Combat Pursuer 15 | . . . 15 Influence Decreases 1075 | 50 241 167 617 Entered New Map 31 | . . 27 4 Time Decay 720 | 50 181 140 349 Lost Part 324 | . 60 . 264 Squads Dispatched 12 | . 3 1 8 Investigation 2 | . . . 2 Extermination . | . . . . Reinforcement 7 | . 3 1 3 Assault . | . . . . Garrison 3 | . . . 3 Intercept . | . . . . Searches Triggered . | . . . . Construction Impeded . | . . . . Haulers Reinforced . | . . . . Active Scanning Responses . | . . . . Cargo Convoy Interrupts . | . . . . Stealth | -11 -10 -9 -8 --------- Run | Yrd Mat Mat Mat Distress Signals 3 | . 1 1 1 Communications Jammed . | . . . . Distress Signals . | . . . . Times Spotted 69 | . 16 10 43 Peak Tracking Total 8 | . 4 4 8 Tactical Retreats 10 | . 1 3 6 Traps | -11 -10 -9 -8 ------- Run | Yrd Mat Mat Mat Traps Triggered 1 | . 1 . . Indirectly . | . . . . Trap Hack Attempts 11 | . 9 . 2 Triggered . | . . . . Disarmed 1 | . . . 1 Reprogrammed 2 | . 2 . . Reused . | . . . . Traps Extracted . | . . . . Installed . | . . . . Triggered . | . . . . Machines | -11 -10 -9 -8 ---------- Run | Yrd Mat Mat Mat Machines Disabled 2 | . . . 2 Max in Single Turn 1 | . . . 1 Machines Repaired . | . . . . Machines Dismantled . | . . . . Machines Sabotaged . | . . . . Overloaded Fab Kills . | . . . . Hacking | -11 -10 -9 -8 --------- Run | Yrd Mat Mat Mat Machines Accessed 13 | . 4 2 7 Terminals 9 | . 3 1 5 Fabricators . | . . . . Repair Stations 4 | . 1 1 2 Recycling Units . | . . . . Scanalyzers . | . . . . Garrison Access . | . . . . Total Hacks 29 | . 11 3 15 Successful 21 | . 8 3 10 Failed 8 | . 3 . 5 Catastrophic 1 | . . . 1 Database Lockouts . | . . . . Manual 13 | . 4 1 8 Terminals 17 | . 5 1 11 Fabricators . | . . . . Repair Stations 12 | . 6 2 4 Recycling Units . | . . . . Scanalyzers . | . . . . Garrison Access . | . . . . Terminal Hacks 3 | . 1 . 2 Record 2 | . . . 2 Zone Layout 1 | . 1 . . Fabricator Hacks . | . . . . Repair Station Hacks 11 | . 5 2 4 Scan Component 6 | . 3 1 2 Repair 5 | . 2 1 2 Recycling Unit Hacks . | . . . . Scanalyzer . | . . . . Garrison Access Hacks . | . . . . Unauthorized Hacks 7 | . 2 1 4 Terminals 7 | . 2 1 4 Botnet 7 | . 2 1 4 Fabricators . | . . . . Repair Stations . | . . . . Recycling Units . | . . . . Scanalyzers . | . . . . Garrison Access . | . . . . Data Cores Recovered . | . . . . Used . | . . . . Hacking Detections 6 | . 1 1 4 Full Trace Events 3 | . 1 . 2 Feedback Events . | . . . . Feedback Blocked . | . . . . Robot Schematics Acquired . | . . . . Robots Built . | . . . . Authchips . | . . . . Time . | . . . . Total Robot Build Rating . | . . . . Part Schematics Acquired . | . . . . Parts Built . | . . . . Authchips . | . . . . Time . | . . . . Total Part Build Rating . | . . . . Parts Repaired 5 | . 2 1 2 Time 148 | . 52 26 70 Parts Recycled . | . . . . Recycled Matter . | . . . . Retrieved Matter . | . . . . Retrieved Components . | . . . . Parts Scanalyzed . | . . . . Part Schematics Acquired . | . . . . Parts Damaged . | . . . . Bothacking | -11 -10 -9 -8 ------------ Run | Yrd Mat Mat Mat Used RIF Installer . | . . . . Robots Hacked 1 | . . . 1 Non-combat 1 | . . . 1 Combat . | . . . . Robot Hacks Applied 1 | . . . 1 no_distress 1 | . . . 1 Relay Couplers Released . | . . . . Fabnet Peak Effective % . | . . . . Robots Rewired . | . . . . Allies Hacked . | . . . . Hacks Repelled . | . . . . Allies | -11 -10 -9 -8 -------- Run | Yrd Mat Mat Mat Total Allies . | . . . . Largest Group . | . . . . Highest-Rated Group . | . . . . Highest-Rated Ally . | . . . . Total Orders . | . . . . Ally Attacks . | . . . . Total Damage . | . . . . Kills . | . . . . Allies Corrupted . | . . . . Allies Melted . | . . . . Intel | -11 -10 -9 -8 ------- Run | Yrd Mat Mat Mat Active Infowar (turns) 1727 | 55 589 364 719 Sensors 459 | . . 363 96 Terrain 182 | 39 . . 143 Seismic 448 | 16 432 . . ECM 1098 | . 157 364 577 Robot Analysis Total . | . . . . Derelict Logs Recovered . | . . . . Drone Launches . | . . . . Drone Recoveries . | . . . . Exploration | -11 -10 -9 -8 ------------- Run | Yrd Mat Mat Mat Turns Passed 2134 | 247 671 364 852 Spaces Moved 1457 | 172 480 291 514 Core 21 | 20 . . 1 Treads . | . . . . Legs 74 | . . . 74 Wheels 1362 | 152 480 291 439 Hover . | . . . . Flight . | . . . . Fastest Speed 50 | 50 80 80 82 Average Speed 83 | 80 80 82 89 Slowest Speed 400 | 100 95 95 400 Overloaded Moves . | . . . . Propulsion Burnouts . | . . . . Robots Hopped . | . . . . Potential Cave-ins . | . . . . Cave-ins Triggered . | . . . . Exploration Rate (%) 31 | 3 51 24 46 Regions Visited 3 Branch Regions . Pre-discovered Areas . | . . . . Known Exits Taken . | . . . . Unknown Exits Taken 3 | 1 1 1 . Scrap Searched . | . . . . Spaces Dug . | . . . . Terrain Destroyed 6 | . . . 6 Melee . | . . . . Projectile . | . . . . AOE 6 | . . . 6 Terrain Rammed . | . . . . Walls Destroyed . | . . . . Machines Disabled . | . . . . Actions | -11 -10 -9 -8 --------- Run | Yrd Mat Mat Mat Total 2103 | 232 703 383 785 Wait 321 | 12 128 43 138 Move 1454 | 171 479 290 514 Hop . | . . . . Pick Up 61 | 16 15 12 18 Fast Attach 6 | . 1 . 5 Attach 46 | 8 8 6 24 Detach 1 | . . 1 . Swap 25 | . 10 5 10 Drop 19 | 1 9 5 4 Fire 134 | 24 42 . 68 Melee 22 | . . 21 1 Ram 3 | . 2 . 1 Kick . | . . . . Crush . | . . . . Escape Stasis . | . . . . Rewire . | . . . . Trap 11 | . 9 . 2 Miscellaneous . | . . . . Route ------- -11/Scrapyard -10/Materials (discovered 2 exits: *Mat / [*Min]) -9/Materials -8/Materials (discovered 1 exit: [*Fac]) History --------- Turn | Location | Event 3 | -11/Scrapyard | Discovered new exit (range 15) 248 | -11/Scrapyard | Entered Materials 316 | -10/Materials | Build established: Mutant 428 | -10/Materials | Discovered new exit (range 11) 693 | -10/Materials | Core integrity fell below 50% 723 | -10/Materials | Lost 4 parts (2n1u1w) 733 | -10/Materials | Repaired Wheel 760 | -10/Materials | Repaired Wheel 836 | -10/Materials | Core integrity fell below 20% 836 | -10/Materials | Discovered new exit (range 15) 919 | -10/Materials | Entered another Materials area 919 | -9/Materials | Evolved 2 slots: Propulsion x1, Utility x1 953 | -9/Materials | Repaired Wheel 1222 | -9/Materials | Discovered new exit (range 15) 1283 | -9/Materials | Entered another Materials area 1283 | -8/Materials | Evolved 2 slots: Propulsion x1, Utility x1 1469 | -8/Materials | Lost 3 parts (2n1u) 1648 | -8/Materials | Repaired Arm. Wheel 1795 | -8/Materials | Garrison activated, responded to threat 1909 | -8/Materials | Lost 5 parts (1p1n2u1w) 1973 | -8/Materials | Repaired Hpw. Shotgun 2061 | -8/Materials | Lost 3 parts (1p1u1w) 2061 | -8/Materials | Discovered new exit (range 11) 2089 | -8/Materials | Core integrity fell below 50% 2127 | -8/Materials | Core integrity fell below 20% 2135 | -8/Materials | Destroyed by H-61 Shepherd with Heavy Assault Cannon Last Messages --------------- 02102_ Acquired 1 matter. 02104_ Hpw. Shotgun destroyed. 02105_ Acquired Aluminum Leg. 02106_ Critical hit (Burn: +37). 02109_ Acquired Corrupted Heat Sink. 02109_ Penetrated by Slug. 02109_ Critical hit (Burn: +37). 02110_ Imp. Carbon-fiber Leg destroyed. 02111_ Acquired Lgt. Ion Engine. 02114_ Acquired Particle Gun. 02115_ Imp. Carbon-fiber Leg destroyed. 02117_ Critical hit (Burn: +37). 02118_ Aluminum Leg destroyed. 02118_ G-47 Trooper destroyed. 02119_ Penetrated by Slug. 02119_ Lgt. Ion Engine destroyed. 02120_ G-47 Trooper destroyed. 02121_ Critical hit (Burn: +37). 02128_ Imp. Carbon-fiber Leg destroyed. 02130_ Knocked back. Map ----- +----------------------------------------------------+ | ????????????????????????????? | | ????????????????????????????? | | ????????????????????????????? | | ????????????????????????????? | | ????????????????????????????? | | ????????????????????????????? | | ????????????????????????????? | | ????????????????????????????? | | ???????##???????????????????? | | ????### ##??????????????????? | | ????# = #??????????????????? | | ????#== #??????????????????? | | ###?# #??????????????????? | | #?# #??????????????????? | | ""#?# #??????????????????? | | ""#?# #?????#????????????? | | ""###! #?????# ??########## | | +=+%[ #?????#